[Event "Titled Tuesday Blitz March 15 Late 2022"]
[White "Xu, Yi"]
[Black "Jaferian, Koosha"]
[WhiteFideId "8605564"]
[BlackFideId "12507440"]
[WhiteElo "2471"]
[BlackElo "2030"]
[Result "1/2-1/2"]
[Round "07"]
[TimeControl "180+1"]
[Date "2022.03.15"]
[WhiteClock "0:00:04"]
[BlackClock "0:00:17"]

1. e4 {[%clk 0:03:00]}  c6 {[%clk 0:02:59]} 2. d4 {[%clk 0:03:00]}  d5 {[%clk 0:03:00]} 3. e5 {[%clk 0:03:00]}  Bf5 {[%clk 0:02:59]} 4. h4 {[%clk 0:03:00]}  h5 {[%clk 0:02:59]} 5. Bd3 {[%clk 0:02:59]}  Bxd3 {[%clk 0:02:58]} 6. Qxd3 {[%clk 0:02:59]}  Qa5+ {[%clk 0:02:51]} 7. Nd2 {[%clk 0:02:59]}  e6 {[%clk 0:02:51]} 8. Nf3 {[%clk 0:02:57]}  Ne7 {[%clk 0:02:51]} 9. c3 {[%clk 0:02:54]}  Nf5 {[%clk 0:02:46]} 10. a4 {[%clk 0:02:52]}  Qa6 {[%clk 0:02:40]} 11. Qxa6 {[%clk 0:02:49]}  Nxa6 {[%clk 0:02:40]} 12. b4 {[%clk 0:02:48]}  Be7 {[%clk 0:02:36]} 13. Nb3 {[%clk 0:02:46]}  Nb8 {[%clk 0:02:07]} 14. Bg5 {[%clk 0:02:41]}  Nd7 {[%clk 0:02:06]} 15. Bxe7 {[%clk 0:02:39]}  Kxe7 {[%clk 0:02:07]} 16. Ke2 {[%clk 0:02:38]}  Rhc8 {[%clk 0:02:04]} 17. Rhb1 {[%clk 0:02:34]}  b6 {[%clk 0:02:04]} 18. g3 {[%clk 0:00:37]}  c5 {[%clk 0:02:04]} 19. bxc5 {[%clk 0:00:36]}  bxc5 {[%clk 0:02:05]} 20. Nxc5 {[%clk 0:00:29]}  Nxc5 {[%clk 0:02:06]} 21. dxc5 {[%clk 0:00:30]}  Rxc5 {[%clk 0:02:07]} 22. Rb7+ {[%clk 0:00:30]}  Kf8 {[%clk 0:02:04]} 23. Rb3 {[%clk 0:00:27]}  Rac8 {[%clk 0:02:03]} 24. Kd2 {[%clk 0:00:27]}  Rc4 {[%clk 0:01:57]} 25. a5 {[%clk 0:00:26]}  d4 {[%clk 0:01:44]} 26. Raa3 {[%clk 0:00:22]}  Rd8 {[%clk 0:01:33]} 27. cxd4 {[%clk 0:00:19]}  Nxd4 {[%clk 0:01:34]} 28. Nxd4 {[%clk 0:00:19]}  Rcxd4+ {[%clk 0:01:35]} 29. Rd3 {[%clk 0:00:17]}  g6 {[%clk 0:01:28]} 30. Ke3 {[%clk 0:00:16]}  Rxd3+ {[%clk 0:01:27]} 31. Rxd3 {[%clk 0:00:16]}  Rb8 {[%clk 0:01:08]} 32. Rd7 {[%clk 0:00:16]}  a6 {[%clk 0:00:55]} 33. Rd6 {[%clk 0:00:16]}  Rb3+ {[%clk 0:00:55]} 34. Ke2 {[%clk 0:00:15]}  Rb2+ {[%clk 0:00:49]} 35. Ke3 {[%clk 0:00:14]}  Rb3+ {[%clk 0:00:49]} 36. Kd4 {[%clk 0:00:13]}  Rb4+ {[%clk 0:00:49]} 37. Kc3 {[%clk 0:00:13]}  Re4 {[%clk 0:00:43]} 38. Rxa6 {[%clk 0:00:08]}  Rxe5 {[%clk 0:00:43]} 39. Ra7 {[%clk 0:00:08]}  Re2 {[%clk 0:00:43]} 40. a6 {[%clk 0:00:07]}  Rxf2 {[%clk 0:00:43]} 41. Rb7 {[%clk 0:00:07]}  Ra2 {[%clk 0:00:43]} 42. a7 {[%clk 0:00:07]}  Kg7 {[%clk 0:00:44]} 43. Kb3 {[%clk 0:00:06]}  Ra1 {[%clk 0:00:42]} 44. Kb2 {[%clk 0:00:06]}  Ra6 {[%clk 0:00:42]} 45. Kb3 {[%clk 0:00:06]}  e5 {[%clk 0:00:42]} 46. Kb4 {[%clk 0:00:07]}  e4 {[%clk 0:00:42]} 47. Kb5 {[%clk 0:00:07]}  Ra1 {[%clk 0:00:42]} 48. Kb6 {[%clk 0:00:07]}  Kf6 {[%clk 0:00:33]} 49. Rb8 {[%clk 0:00:07]}  Kf5 {[%clk 0:00:19]} 50. a8=Q {[%clk 0:00:07]}  Rxa8 {[%clk 0:00:20]} 51. Rxa8 {[%clk 0:00:07]}  Kg4 {[%clk 0:00:21]} 52. Re8 {[%clk 0:00:07]}  f5 {[%clk 0:00:18]} 53. Re6 {[%clk 0:00:07]}  Kxg3 {[%clk 0:00:19]} 54. Rxg6+ {[%clk 0:00:08]}  Kxh4 {[%clk 0:00:19]} 55. Kc5 {[%clk 0:00:08]}  Kh3 {[%clk 0:00:16]} 56. Kd4 {[%clk 0:00:08]}  h4 {[%clk 0:00:16]} 57. Ke3 {[%clk 0:00:08]}  Kh2 {[%clk 0:00:17]} 58. Rg5 {[%clk 0:00:06]}  h3 {[%clk 0:00:16]} 59. Rxf5 {[%clk 0:00:06]}  Kg2 {[%clk 0:00:17]} 60. Rg5+ {[%clk 0:00:07]}  Kf1 {[%clk 0:00:18]} 61. Rh5 {[%clk 0:00:05]}  Kg2 {[%clk 0:00:18]} 62. Rg5+ {[%clk 0:00:05]}  Kf1 {[%clk 0:00:18]} 63. Rf5+ {[%clk 0:00:04]}  Kg2 {[%clk 0:00:17]} 64. Rf2+ {[%clk 0:00:04]}  Kg1 {[%clk 0:00:17]} 65. Re2 {[%clk 0:00:03]}  h2 {[%clk 0:00:17]} 66. Rxh2 {[%clk 0:00:03]}  Kxh2 {[%clk 0:00:17]} 67. Kxe4 {[%clk 0:00:04]} 1/2-1/2


[Site "https://www.chess.com"]

[Event "Titled Tuesday Blitz March 15 Late 2022"]
[White "Yedidia, Daniel"]
[Black "Peatman, Carter"]
[WhiteFideId "30905907"]
[BlackFideId "2096480"]
[WhiteElo "2509"]
[BlackElo "2440"]
[Result "0-1"]
[Round "07"]
[TimeControl "180+1"]
[Date "2022.03.16"]
[WhiteClock "0:00:02"]
[BlackClock "0:00:06"]

1. d4 {[%clk 0:03:00]}  d5 {[%clk 0:02:59]} 2. c4 {[%clk 0:03:00]}  dxc4 {[%clk 0:03:00]} 3. Nf3 {[%clk 0:03:01]}  a6 {[%clk 0:02:57]} 4. a4 {[%clk 0:02:58]}  Nc6 {[%clk 0:02:57]} 5. e3 {[%clk 0:02:57]}  Na5 {[%clk 0:02:57]} 6. Nbd2 {[%clk 0:02:55]}  Be6 {[%clk 0:02:56]} 7. Ne5 {[%clk 0:02:53]}  b5 {[%clk 0:02:54]} 8. g3 {[%clk 0:02:45]}  Bd5 {[%clk 0:02:52]} 9. e4 {[%clk 0:02:45]}  Bb7 {[%clk 0:02:51]} 10. d5 {[%clk 0:02:44]}  Nf6 {[%clk 0:02:47]} 11. Bg2 {[%clk 0:02:44]}  g6 {[%clk 0:02:45]} 12. O-O {[%clk 0:02:43]}  Bg7 {[%clk 0:02:45]} 13. f4 {[%clk 0:02:44]}  O-O {[%clk 0:02:44]} 14. Ndf3 {[%clk 0:02:36]}  Nd7 {[%clk 0:02:43]} 15. Be3 {[%clk 0:02:30]}  Nb3 {[%clk 0:02:42]} 16. Rb1 {[%clk 0:02:25]}  Ndc5 {[%clk 0:02:31]} 17. axb5 {[%clk 0:02:23]}  axb5 {[%clk 0:02:29]} 18. Qc2 {[%clk 0:02:19]}  f6 {[%clk 0:02:10]} 19. Nc6 {[%clk 0:01:59]}  Bxc6 {[%clk 0:02:09]} 20. dxc6 {[%clk 0:01:59]}  Qd3 {[%clk 0:01:43]} 21. Qxd3 {[%clk 0:02:00]}  Nxd3 {[%clk 0:01:44]} 22. Rfd1 {[%clk 0:01:56]}  e5 {[%clk 0:01:42]} 23. fxe5 {[%clk 0:01:48]}  fxe5 {[%clk 0:01:42]} 24. Ng5 {[%clk 0:01:45]}  Rfe8 {[%clk 0:01:38]} 25. Bh3 {[%clk 0:01:39]}  Nbc5 {[%clk 0:01:27]} 26. Rf1 {[%clk 0:01:18]}  h6 {[%clk 0:01:20]} 27. Nf3 {[%clk 0:01:18]}  Nxe4 {[%clk 0:01:17]} 28. Nh4 {[%clk 0:01:14]}  g5 {[%clk 0:01:09]} 29. Nf5 {[%clk 0:01:08]}  Bf8 {[%clk 0:01:09]} 30. Bg2 {[%clk 0:01:04]}  Nd6 {[%clk 0:01:08]} 31. Bd5+ {[%clk 0:01:04]}  Kh7 {[%clk 0:01:08]} 32. Nxd6 {[%clk 0:01:02]}  Bxd6 {[%clk 0:01:07]} 33. Rf7+ {[%clk 0:00:59]}  Kh8 {[%clk 0:01:05]} 34. Rf6 {[%clk 0:00:56]}  Bf8 {[%clk 0:00:59]} 35. Rf7 {[%clk 0:00:51]}  Bg7 {[%clk 0:00:59]} 36. Rxc7 {[%clk 0:00:49]}  Rad8 {[%clk 0:00:53]} 37. Rd7 {[%clk 0:00:47]}  Nb4 {[%clk 0:00:47]} 38. Bf7 {[%clk 0:00:30]}  Rxd7 {[%clk 0:00:24]} 39. cxd7 {[%clk 0:00:28]}  Rd8 {[%clk 0:00:24]} 40. Be6 {[%clk 0:00:24]}  Bf6 {[%clk 0:00:24]} 41. Bb6 {[%clk 0:00:22]}  Rb8 {[%clk 0:00:24]} 42. Bc5 {[%clk 0:00:15]}  Nd3 {[%clk 0:00:25]} 43. Bd6 {[%clk 0:00:12]}  Ra8 {[%clk 0:00:19]} 44. Rf1 {[%clk 0:00:12]}  Kg7 {[%clk 0:00:19]} 45. Bc7 {[%clk 0:00:11]}  Nc5 {[%clk 0:00:18]} 46. Rxf6 {[%clk 0:00:10]}  Kxf6 {[%clk 0:00:18]} 47. Bg4 {[%clk 0:00:08]}  Nb7 {[%clk 0:00:17]} 48. Bf3 {[%clk 0:00:08]}  Rd8 {[%clk 0:00:16]} 49. Bxd8+ {[%clk 0:00:04]}  Nxd8 {[%clk 0:00:17]} 50. Kf2 {[%clk 0:00:04]}  Ke7 {[%clk 0:00:16]} 51. Bg4 {[%clk 0:00:05]}  Nb7 {[%clk 0:00:15]} 52. Ke3 {[%clk 0:00:04]}  Nc5 {[%clk 0:00:16]} 53. h4 {[%clk 0:00:03]}  Nxd7 {[%clk 0:00:15]} 54. hxg5 {[%clk 0:00:04]}  hxg5 {[%clk 0:00:16]} 55. Be2 {[%clk 0:00:05]}  Nc5 {[%clk 0:00:13]} 56. Kf3 {[%clk 0:00:05]}  Kf6 {[%clk 0:00:13]} 57. Kg4 {[%clk 0:00:06]}  Ne4 {[%clk 0:00:13]} 58. Bf3 {[%clk 0:00:06]}  Nd2 {[%clk 0:00:13]} 59. Bc6 {[%clk 0:00:07]}  b4 {[%clk 0:00:11]} 60. Ba4 {[%clk 0:00:07]}  Ne4 {[%clk 0:00:09]} 61. Bc2 {[%clk 0:00:07]}  Nc5 {[%clk 0:00:09]} 62. Kf3 {[%clk 0:00:08]}  Ke6 {[%clk 0:00:04]} 63. Ke3 {[%clk 0:00:07]}  Kd5 {[%clk 0:00:04]} 64. Bg6 {[%clk 0:00:07]}  e4 {[%clk 0:00:04]} 65. Bf7+ {[%clk 0:00:08]}  Ne6 {[%clk 0:00:04]} 66. Bg8 {[%clk 0:00:08]}  Ke5 {[%clk 0:00:05]} 67. Bh7 {[%clk 0:00:09]}  Nc5 {[%clk 0:00:05]} 68. Bg8 {[%clk 0:00:09]}  c3 {[%clk 0:00:04]} 69. bxc3 {[%clk 0:00:09]}  bxc3 {[%clk 0:00:05]} 70. Bh7 {[%clk 0:00:09]}  c2 {[%clk 0:00:03]} 71. Kd2 {[%clk 0:00:10]}  Kd4 {[%clk 0:00:03]} 72. Kxc2 {[%clk 0:00:10]}  Ke3 {[%clk 0:00:03]} 73. Kc3 {[%clk 0:00:09]}  Nd3 {[%clk 0:00:04]} 74. Kc4 {[%clk 0:00:08]}  Nf2 {[%clk 0:00:04]} 75. Kd5 {[%clk 0:00:08]}  Kf3 {[%clk 0:00:04]} 76. Ke5 {[%clk 0:00:03]}  g4 {[%clk 0:00:04]} 77. Bg8 {[%clk 0:00:02]}  Kxg3 {[%clk 0:00:05]} 78. Kd4 {[%clk 0:00:02]}  Kf3 {[%clk 0:00:05]} 79. Bd5 {[%clk 0:00:03]}  g3 {[%clk 0:00:05]} 80. Kc3 {[%clk 0:00:02]}  g2 {[%clk 0:00:06]} 0-1


[Site "https://www.chess.com"]

[Event "Titled Tuesday Blitz March 15 Late 2022"]
[White "Zhurbinsky, David"]
[Black "Ladan, Nicholas"]
[WhiteFideId "2072904"]
[BlackFideId "30918855"]
[WhiteElo "2582"]
[BlackElo "2167"]
[Result "1-0"]
[Round "07"]
[TimeControl "180+1"]
[Date "2022.03.16"]
[WhiteClock "0:00:08"]
[BlackClock "0:00:08"]

1. e4 {[%clk 0:02:44]}  e5 {[%clk 0:03:00]} 2. Nc3 {[%clk 0:02:44]}  Nc6 {[%clk 0:03:00]} 3. Bc4 {[%clk 0:02:44]}  Nf6 {[%clk 0:03:00]} 4. f4 {[%clk 0:02:44]}  Nxe4 {[%clk 0:02:53]} 5. Nxe4 {[%clk 0:02:38]}  d5 {[%clk 0:02:54]} 6. Bd3 {[%clk 0:02:38]}  dxe4 {[%clk 0:02:40]} 7. Bxe4 {[%clk 0:02:39]}  exf4 {[%clk 0:02:35]} 8. Nf3 {[%clk 0:02:37]}  Bc5 {[%clk 0:02:33]} 9. d3 {[%clk 0:02:35]}  O-O {[%clk 0:02:25]} 10. Bxf4 {[%clk 0:02:34]}  Re8 {[%clk 0:02:13]} 11. Ng5 {[%clk 0:02:00]}  f5 {[%clk 0:01:49]} 12. Qh5 {[%clk 0:01:59]}  h6 {[%clk 0:01:46]} 13. Qf7+ {[%clk 0:01:55]}  Kh8 {[%clk 0:01:46]} 14. Qh5 {[%clk 0:01:32]}  Qf6 {[%clk 0:01:34]} 15. O-O-O {[%clk 0:01:27]}  Bd7 {[%clk 0:01:25]} 16. Rhf1 {[%clk 0:01:07]}  Bd4 {[%clk 0:01:05]} 17. Bd5 {[%clk 0:00:37]}  Bxb2+ {[%clk 0:00:45]} 18. Kb1 {[%clk 0:00:37]}  Nd8 {[%clk 0:00:44]} 19. Rfe1 {[%clk 0:00:31]}  Rxe1 {[%clk 0:00:15]} 20. Rxe1 {[%clk 0:00:32]}  Ba3 {[%clk 0:00:16]} 21. d4 {[%clk 0:00:14]}  Qb6+ {[%clk 0:00:15]} 22. Bb3 {[%clk 0:00:14]}  Ne6 {[%clk 0:00:10]} 23. Nxe6 {[%clk 0:00:08]}  Bxe6 {[%clk 0:00:10]} 24. Rxe6 {[%clk 0:00:07]}  Qxd4 {[%clk 0:00:08]} 25. Rxh6+ {[%clk 0:00:07]}  gxh6 {[%clk 0:00:08]} 26. Qxh6# {[%clk 0:00:08]} 1-0


[Site "https://www.chess.com"]

[Event "Titled Tuesday Blitz March 15 Late 2022"]
[White "Albuquerque Junior,Wellington S."]
[Black "Hirneise, Jens"]
[WhiteFideId "2151480"]
[BlackFideId "24614734"]
[WhiteElo "2042"]
[BlackElo "2359"]
[Result "0-1"]
[Round "08"]
[TimeControl "180+1"]
[Date "2022.03.16"]
[WhiteClock "0:00:09"]
[BlackClock "0:00:19"]

1. c4 {[%clk 0:03:00]}  e6 {[%clk 0:02:57]} 2. g3 {[%clk 0:03:00]}  h5 {[%clk 0:02:55]} 3. Nf3 {[%clk 0:02:58]}  Be7 {[%clk 0:02:52]} 4. Bg2 {[%clk 0:02:55]}  h4 {[%clk 0:02:40]} 5. d4 {[%clk 0:02:54]}  h3 {[%clk 0:02:39]} 6. Bf1 {[%clk 0:02:54]}  d5 {[%clk 0:02:37]} 7. Nc3 {[%clk 0:02:53]}  c6 {[%clk 0:02:34]} 8. e4 {[%clk 0:02:51]}  dxe4 {[%clk 0:02:31]} 9. Nxe4 {[%clk 0:02:52]}  Nf6 {[%clk 0:02:30]} 10. Nxf6+ {[%clk 0:02:52]}  Bxf6 {[%clk 0:02:28]} 11. Be3 {[%clk 0:02:52]}  Nd7 {[%clk 0:02:27]} 12. Be2 {[%clk 0:02:49]}  Qe7 {[%clk 0:02:24]} 13. O-O {[%clk 0:02:48]}  e5 {[%clk 0:02:22]} 14. dxe5 {[%clk 0:02:36]}  Nxe5 {[%clk 0:02:22]} 15. Nxe5 {[%clk 0:02:36]}  Qxe5 {[%clk 0:02:16]} 16. Re1 {[%clk 0:02:30]}  O-O {[%clk 0:02:04]} 17. Bg4 {[%clk 0:02:08]}  Qe4 {[%clk 0:01:39]} 18. f3 {[%clk 0:01:40]}  Qxc4 {[%clk 0:01:37]} 19. Bxc8 {[%clk 0:01:40]}  Raxc8 {[%clk 0:01:38]} 20. b3 {[%clk 0:01:35]}  Qb4 {[%clk 0:01:23]} 21. Rc1 {[%clk 0:01:31]}  Rfe8 {[%clk 0:01:20]} 22. Rc4 {[%clk 0:00:52]}  Qa5 {[%clk 0:01:16]} 23. Re2 {[%clk 0:00:45]}  Rcd8 {[%clk 0:00:50]} 24. Qe1 {[%clk 0:00:34]}  Qxe1+ {[%clk 0:00:45]} 25. Rxe1 {[%clk 0:00:34]}  a6 {[%clk 0:00:33]} 26. Re2 {[%clk 0:00:26]}  Rd1+ {[%clk 0:00:32]} 27. Kf2 {[%clk 0:00:26]}  Rh1 {[%clk 0:00:32]} 28. Rb4 {[%clk 0:00:08]}  Rxh2+ {[%clk 0:00:30]} 29. Kf1 {[%clk 0:00:09]}  Rh1+ {[%clk 0:00:29]} 30. Kf2 {[%clk 0:00:08]}  h2 {[%clk 0:00:30]} 31. Kg2 {[%clk 0:00:09]}  Rd1 {[%clk 0:00:25]} 32. Kxh2 {[%clk 0:00:09]}  Rd3 {[%clk 0:00:25]} 33. Re4 {[%clk 0:00:08]}  Rxe4 {[%clk 0:00:25]} 34. fxe4 {[%clk 0:00:08]}  Be5 {[%clk 0:00:25]} 35. Kg2 {[%clk 0:00:09]}  f6 {[%clk 0:00:24]} 36. Bf4 {[%clk 0:00:09]}  Kf7 {[%clk 0:00:22]} 37. Rc2 {[%clk 0:00:08]}  Ke6 {[%clk 0:00:21]} 38. Rc4 {[%clk 0:00:08]}  Bxf4 {[%clk 0:00:20]} 39. gxf4 {[%clk 0:00:09]}  Rd2+ {[%clk 0:00:21]} 40. Kf3 {[%clk 0:00:09]}  Rxa2 {[%clk 0:00:22]} 41. Rb4 {[%clk 0:00:10]}  b5 {[%clk 0:00:21]} 42. Rd4 {[%clk 0:00:10]}  Rb2 {[%clk 0:00:21]} 43. b4 {[%clk 0:00:10]}  Rc2 {[%clk 0:00:20]} 44. Rd8 {[%clk 0:00:09]}  Rc4 {[%clk 0:00:19]} 45. f5+ {[%clk 0:00:09]}  Ke7 {[%clk 0:00:19]} 46. Rb8 {[%clk 0:00:09]}  Rxb4 {[%clk 0:00:19]} 47. Rb7+ {[%clk 0:00:10]}  Kf8 {[%clk 0:00:19]} 48. Rc7 {[%clk 0:00:10]}  a5 {[%clk 0:00:19]} 49. Ke3 {[%clk 0:00:09]}  a4 {[%clk 0:00:20]} 50. Rxc6 {[%clk 0:00:10]}  a3 {[%clk 0:00:20]} 51. Rc8+ {[%clk 0:00:10]}  Kf7 {[%clk 0:00:20]} 52. Rc1 {[%clk 0:00:09]}  a2 {[%clk 0:00:19]} 53. Ra1 {[%clk 0:00:09]}  Ra4 {[%clk 0:00:19]} 54. Kd3 {[%clk 0:00:09]}  Ke7 {[%clk 0:00:18]} 55. Kc3 {[%clk 0:00:08]}  Kd6 {[%clk 0:00:19]} 56. Kb3 {[%clk 0:00:09]}  Ke5 {[%clk 0:00:19]} 0-1


[Site "https://www.chess.com"]

[Event "Titled Tuesday Blitz March 15 Late 2022"]
[White "Andreikin, Dmitry"]
[Black "Narayanan.S.L"]
[WhiteFideId "4158814"]
[BlackFideId "5058422"]
[WhiteElo "2736"]
[BlackElo "2494"]
[Result "1-0"]
[Round "08"]
[TimeControl "180+1"]
[Date "2022.03.15"]
[WhiteClock "0:01:44"]
[BlackClock "0:00:15"]

1. e4 {[%clk 0:02:52]}  e5 {[%clk 0:02:58]} 2. Nf3 {[%clk 0:02:52]}  Nf6 {[%clk 0:02:58]} 3. Nc3 {[%clk 0:02:52]}  Nc6 {[%clk 0:02:58]} 4. d4 {[%clk 0:02:52]}  exd4 {[%clk 0:02:58]} 5. Nxd4 {[%clk 0:02:53]}  Bb4 {[%clk 0:02:58]} 6. Nxc6 {[%clk 0:02:54]}  bxc6 {[%clk 0:02:58]} 7. Bd3 {[%clk 0:02:54]}  d5 {[%clk 0:02:55]} 8. Bd2 {[%clk 0:02:54]}  O-O {[%clk 0:02:54]} 9. O-O {[%clk 0:02:54]}  Rb8 {[%clk 0:02:55]} 10. Re1 {[%clk 0:02:45]}  Bg4 {[%clk 0:02:40]} 11. Qc1 {[%clk 0:02:44]}  Re8 {[%clk 0:02:37]} 12. h3 {[%clk 0:02:41]}  Bh5 {[%clk 0:02:36]} 13. exd5 {[%clk 0:02:34]}  Rxe1+ {[%clk 0:02:33]} 14. Qxe1 {[%clk 0:02:35]}  cxd5 {[%clk 0:02:33]} 15. a3 {[%clk 0:02:32]}  Bf8 {[%clk 0:02:23]} 16. b4 {[%clk 0:02:32]}  c6 {[%clk 0:02:23]} 17. Bf4 {[%clk 0:02:13]}  Rb7 {[%clk 0:02:22]} 18. Na4 {[%clk 0:02:13]}  Bg6 {[%clk 0:02:17]} 19. Qc3 {[%clk 0:02:13]}  Qe8 {[%clk 0:01:46]} 20. Re1 {[%clk 0:02:11]}  Re7 {[%clk 0:01:46]} 21. Rxe7 {[%clk 0:02:10]}  Bxe7 {[%clk 0:01:47]} 22. Qd4 {[%clk 0:02:04]}  Qd7 {[%clk 0:01:19]} 23. Be3 {[%clk 0:02:04]}  Bxd3 {[%clk 0:01:18]} 24. cxd3 {[%clk 0:02:03]}  a6 {[%clk 0:01:15]} 25. Qb6 {[%clk 0:01:59]}  Qc8 {[%clk 0:01:13]} 26. Qa7 {[%clk 0:01:57]}  Bd8 {[%clk 0:01:10]} 27. Nc5 {[%clk 0:01:57]}  h5 {[%clk 0:00:56]} 28. Qxa6 {[%clk 0:01:56]}  Qc7 {[%clk 0:00:48]} 29. Qb7 {[%clk 0:01:50]}  Qe5 {[%clk 0:00:20]} 30. Qc8 {[%clk 0:01:50]}  Qa1+ {[%clk 0:00:21]} 31. Kh2 {[%clk 0:01:50]}  Qe5+ {[%clk 0:00:21]} 32. g3 {[%clk 0:01:49]}  Qe8 {[%clk 0:00:18]} 33. Nb7 {[%clk 0:01:44]}  Be7 {[%clk 0:00:14]} 34. Qxe8+ {[%clk 0:01:44]}  Nxe8 {[%clk 0:00:15]} 35. Na5 {[%clk 0:01:44]} 1-0


[Site "https://www.chess.com"]

[Event "Titled Tuesday Blitz March 15 Late 2022"]
[White "Araujo Filho, Luiz Antonio Coel"]
[Black "Brunner, Nicolas"]
[WhiteFideId "2130661"]
[BlackFideId "620246"]
[WhiteElo "2231"]
[BlackElo "2372"]
[Result "1/2-1/2"]
[Round "08"]
[TimeControl "180+1"]
[Date "2022.03.16"]
[WhiteClock "0:00:07"]
[BlackClock "0:00:13"]

1. d4 {[%clk 0:01:40]}  d5 {[%clk 0:02:57]} 2. Nf3 {[%clk 0:01:41]}  Nf6 {[%clk 0:02:54]} 3. e3 {[%clk 0:01:41]}  c6 {[%clk 0:02:53]} 4. Nbd2 {[%clk 0:01:41]}  Bg4 {[%clk 0:02:52]} 5. b3 {[%clk 0:01:42]}  Nbd7 {[%clk 0:02:51]} 6. Bb2 {[%clk 0:01:42]}  e6 {[%clk 0:02:51]} 7. Be2 {[%clk 0:01:43]}  Bd6 {[%clk 0:02:51]} 8. O-O {[%clk 0:01:43]}  O-O {[%clk 0:02:51]} 9. c4 {[%clk 0:01:44]}  Re8 {[%clk 0:02:37]} 10. Ne5 {[%clk 0:01:44]}  Bf5 {[%clk 0:02:32]} 11. Rc1 {[%clk 0:01:42]}  h6 {[%clk 0:02:31]} 12. a3 {[%clk 0:01:36]}  a5 {[%clk 0:02:29]} 13. Re1 {[%clk 0:01:32]}  Qe7 {[%clk 0:02:29]} 14. a4 {[%clk 0:01:30]}  Ba3 {[%clk 0:02:26]} 15. Bxa3 {[%clk 0:01:12]}  Qxa3 {[%clk 0:02:25]} 16. Nxd7 {[%clk 0:01:10]}  Nxd7 {[%clk 0:02:25]} 17. f3 {[%clk 0:01:09]}  Qe7 {[%clk 0:02:15]} 18. e4 {[%clk 0:01:08]}  Bh7 {[%clk 0:02:04]} 19. Bd3 {[%clk 0:01:07]}  dxe4 {[%clk 0:01:46]} 20. Nxe4 {[%clk 0:00:52]}  Nf6 {[%clk 0:01:45]} 21. Nxf6+ {[%clk 0:00:50]}  Qxf6 {[%clk 0:01:45]} 22. Bxh7+ {[%clk 0:00:51]}  Kxh7 {[%clk 0:01:45]} 23. Qd3+ {[%clk 0:00:48]}  Qg6 {[%clk 0:01:44]} 24. Qc3 {[%clk 0:00:45]}  Red8 {[%clk 0:01:43]} 25. Rcd1 {[%clk 0:00:44]}  Qf6 {[%clk 0:01:40]} 26. Re2 {[%clk 0:00:38]}  Rd7 {[%clk 0:01:38]} 27. Red2 {[%clk 0:00:36]}  Kg8 {[%clk 0:01:32]} 28. Rd3 {[%clk 0:00:25]}  c5 {[%clk 0:01:30]} 29. Qd2 {[%clk 0:00:17]}  Qf5 {[%clk 0:01:05]} 30. d5 {[%clk 0:00:15]}  Rad8 {[%clk 0:00:52]} 31. Qxa5 {[%clk 0:00:11]}  exd5 {[%clk 0:00:50]} 32. cxd5 {[%clk 0:00:11]}  Rxd5 {[%clk 0:00:49]} 33. Rxd5 {[%clk 0:00:10]}  Rxd5 {[%clk 0:00:48]} 34. Rxd5 {[%clk 0:00:10]}  Qxd5 {[%clk 0:00:48]} 35. Qb5 {[%clk 0:00:10]}  Qd1+ {[%clk 0:00:45]} 36. Kf2 {[%clk 0:00:11]}  Qd4+ {[%clk 0:00:42]} 37. Kg3 {[%clk 0:00:11]}  Qe5+ {[%clk 0:00:40]} 38. Kf2 {[%clk 0:00:11]}  Qd4+ {[%clk 0:00:36]} 39. Kg3 {[%clk 0:00:11]}  Qd6+ {[%clk 0:00:34]} 40. Kf2 {[%clk 0:00:11]}  b6 {[%clk 0:00:34]} 41. Ke2 {[%clk 0:00:11]}  Qe5+ {[%clk 0:00:33]} 42. Kf2 {[%clk 0:00:11]}  Qd4+ {[%clk 0:00:33]} 43. Ke2 {[%clk 0:00:11]}  Qe5+ {[%clk 0:00:31]} 44. Kf2 {[%clk 0:00:12]}  Qe6 {[%clk 0:00:30]} 45. g3 {[%clk 0:00:12]}  Qd6 {[%clk 0:00:29]} 46. Ke2 {[%clk 0:00:12]}  g6 {[%clk 0:00:27]} 47. Kf2 {[%clk 0:00:12]}  h5 {[%clk 0:00:27]} 48. Ke2 {[%clk 0:00:12]}  h4 {[%clk 0:00:27]} 49. Kf2 {[%clk 0:00:11]}  h3 {[%clk 0:00:27]} 50. f4 {[%clk 0:00:10]}  Qd4+ {[%clk 0:00:26]} 51. Kf3 {[%clk 0:00:10]}  Qd5+ {[%clk 0:00:23]} 52. Ke3 {[%clk 0:00:09]}  Qg2 {[%clk 0:00:18]} 53. Qxb6 {[%clk 0:00:08]}  Qg1+ {[%clk 0:00:18]} 54. Ke4 {[%clk 0:00:07]}  Qh1+ {[%clk 0:00:18]} 55. Ke5 {[%clk 0:00:06]}  Qxh2 {[%clk 0:00:14]} 56. Qd8+ {[%clk 0:00:06]}  Kh7 {[%clk 0:00:14]} 57. Qh4+ {[%clk 0:00:06]}  Kg8 {[%clk 0:00:13]} 58. Qd8+ {[%clk 0:00:06]}  Kg7 {[%clk 0:00:13]} 59. Qf6+ {[%clk 0:00:07]}  Kg8 {[%clk 0:00:13]} 60. Qd8+ {[%clk 0:00:07]} 1/2-1/2


[Site "https://www.chess.com"]

[Event "Titled Tuesday Blitz March 15 Late 2022"]
[White "Ardila, Oscar Humberto"]
[Black "Mickiewicz, Piotr"]
[WhiteFideId "4404742"]
[BlackFideId "1114891"]
[WhiteElo "1966"]
[BlackElo "2266"]
[Result "1-0"]
[Round "08"]
[TimeControl "180+1"]
[Date "2022.03.16"]
[WhiteClock "0:00:12"]
[BlackClock "0:00:08"]

1. d4 {[%clk 0:02:59]}  d5 {[%clk 0:02:57]} 2. c4 {[%clk 0:02:59]}  e6 {[%clk 0:02:56]} 3. Nc3 {[%clk 0:02:59]}  Nf6 {[%clk 0:02:56]} 4. Bg5 {[%clk 0:03:00]}  c6 {[%clk 0:02:54]} 5. e3 {[%clk 0:03:00]}  Nbd7 {[%clk 0:02:54]} 6. Nf3 {[%clk 0:02:59]}  Qa5 {[%clk 0:02:53]} 7. Qc2 {[%clk 0:02:52]}  Ne4 {[%clk 0:02:47]} 8. Bf4 {[%clk 0:02:47]}  Bb4 {[%clk 0:02:40]} 9. Rc1 {[%clk 0:02:46]}  O-O {[%clk 0:02:13]} 10. Bd3 {[%clk 0:02:45]}  f5 {[%clk 0:02:12]} 11. O-O {[%clk 0:02:42]}  Ndf6 {[%clk 0:01:32]} 12. Ne5 {[%clk 0:02:13]}  Bd7 {[%clk 0:01:31]} 13. f3 {[%clk 0:02:05]}  Nxc3 {[%clk 0:01:29]} 14. bxc3 {[%clk 0:02:05]}  Be7 {[%clk 0:01:22]} 15. cxd5 {[%clk 0:02:05]}  cxd5 {[%clk 0:01:17]} 16. c4 {[%clk 0:01:47]}  Rac8 {[%clk 0:01:12]} 17. Qe2 {[%clk 0:01:39]}  Ba4 {[%clk 0:01:02]} 18. Rb1 {[%clk 0:01:29]}  b6 {[%clk 0:01:01]} 19. Rfc1 {[%clk 0:01:20]}  Ba3 {[%clk 0:00:56]} 20. Rf1 {[%clk 0:01:11]}  Rfd8 {[%clk 0:00:48]} 21. h4 {[%clk 0:01:07]}  dxc4 {[%clk 0:00:48]} 22. Bxc4 {[%clk 0:01:07]}  Nd5 {[%clk 0:00:47]} 23. Bxd5 {[%clk 0:00:47]}  exd5 {[%clk 0:00:46]} 24. Qd3 {[%clk 0:00:40]}  g6 {[%clk 0:00:45]} 25. h5 {[%clk 0:00:40]}  Rc3 {[%clk 0:00:44]} 26. Qe2 {[%clk 0:00:40]}  Rc2 {[%clk 0:00:43]} 27. Qe1 {[%clk 0:00:33]}  Qxe1 {[%clk 0:00:40]} 28. Rfxe1 {[%clk 0:00:33]}  gxh5 {[%clk 0:00:34]} 29. Kh2 {[%clk 0:00:23]}  Rdc8 {[%clk 0:00:27]} 30. Kg3 {[%clk 0:00:22]}  Rxa2 {[%clk 0:00:25]} 31. Ra1 {[%clk 0:00:22]}  Rcc2 {[%clk 0:00:24]} 32. Rxa2 {[%clk 0:00:22]}  Rxa2 {[%clk 0:00:24]} 33. Rh1 {[%clk 0:00:23]}  Be8 {[%clk 0:00:22]} 34. Bg5 {[%clk 0:00:18]}  Bd6 {[%clk 0:00:18]} 35. Bf6 {[%clk 0:00:17]}  a5 {[%clk 0:00:17]} 36. Kf4 {[%clk 0:00:16]}  Rxg2 {[%clk 0:00:15]} 37. Kxf5 {[%clk 0:00:17]}  Bxe5 {[%clk 0:00:14]} 38. Kxe5 {[%clk 0:00:16]}  Re2 {[%clk 0:00:13]} 39. Bg5 {[%clk 0:00:15]}  Bf7 {[%clk 0:00:12]} 40. Rc1 {[%clk 0:00:14]}  Kg7 {[%clk 0:00:10]} 41. Bf6+ {[%clk 0:00:14]}  Kg6 {[%clk 0:00:09]} 42. Rg1+ {[%clk 0:00:13]}  Kh6 {[%clk 0:00:08]} 43. Bg7# {[%clk 0:00:12]} 1-0


[Site "https://www.chess.com"]